[Event "Titled Tuesday Blitz December 20 Early 2022"]
[White "Dadic, Ivan"]
[Black "Rosenberg, Sergei G"]
[WhiteFideId "14531364"]
[BlackFideId "4102444"]
[WhiteElo "2080"]
[BlackElo "2418"]
[Result "1/2-1/2"]
[Round "07"]
[TimeControl "180+2"]
[Date "2022.12.20"]
[WhiteClock "0:01:32"]
[BlackClock "0:00:07"]

1. e4 {[%clk 0:03:00]}  e5 {[%clk 0:02:59]} 2. Nf3 {[%clk 0:02:58]}  Nc6 {[%clk 0:03:00]} 3. d4 {[%clk 0:02:57]}  exd4 {[%clk 0:03:00]} 4. Nxd4 {[%clk 0:02:57]}  Nf6 {[%clk 0:02:59]} 5. Nxc6 {[%clk 0:02:56]}  bxc6 {[%clk 0:03:00]} 6. e5 {[%clk 0:02:55]}  Qe7 {[%clk 0:03:01]} 7. Qe2 {[%clk 0:02:55]}  Nd5 {[%clk 0:03:01]} 8. h4 {[%clk 0:02:55]}  f6 {[%clk 0:03:01]} 9. c4 {[%clk 0:02:53]}  Ba6 {[%clk 0:03:00]} 10. Rh3 {[%clk 0:02:49]}  O-O-O {[%clk 0:02:55]} 11. Ra3 {[%clk 0:02:42]}  Qb4+ {[%clk 0:02:27]} 12. Nd2 {[%clk 0:02:37]}  Qb6 {[%clk 0:01:41]} 13. Rxa6 {[%clk 0:02:35]}  Qxa6 {[%clk 0:01:41]} 14. cxd5 {[%clk 0:02:35]}  Qxe2+ {[%clk 0:01:40]} 15. Bxe2 {[%clk 0:02:35]}  cxd5 {[%clk 0:01:39]} 16. exf6 {[%clk 0:02:35]}  gxf6 {[%clk 0:01:39]} 17. Nf3 {[%clk 0:02:31]}  Bb4+ {[%clk 0:01:35]} 18. Kf1 {[%clk 0:02:29]}  Rde8 {[%clk 0:01:27]} 19. Be3 {[%clk 0:02:27]}  Kb7 {[%clk 0:01:20]} 20. Nd4 {[%clk 0:02:23]}  a6 {[%clk 0:01:15]} 21. Bf3 {[%clk 0:02:21]}  c6 {[%clk 0:01:14]} 22. a3 {[%clk 0:02:18]}  Bd6 {[%clk 0:01:13]} 23. b4 {[%clk 0:02:17]}  Rhf8 {[%clk 0:00:59]} 24. Nf5 {[%clk 0:02:03]}  Bc7 {[%clk 0:00:59]} 25. Bc5 {[%clk 0:02:01]}  Rg8 {[%clk 0:00:49]} 26. Nd6+ {[%clk 0:02:01]}  Bxd6 {[%clk 0:00:49]} 27. Bxd6 {[%clk 0:02:02]}  Re6 {[%clk 0:00:48]} 28. Bc5 {[%clk 0:02:00]}  Rge8 {[%clk 0:00:44]} 29. Be3 {[%clk 0:02:00]}  Re5 {[%clk 0:00:39]} 30. Rc1 {[%clk 0:01:57]}  f5 {[%clk 0:00:38]} 31. Bf4 {[%clk 0:01:55]}  R5e6 {[%clk 0:00:37]} 32. g3 {[%clk 0:01:55]}  Ra8 {[%clk 0:00:34]} 33. a4 {[%clk 0:01:55]}  Rae8 {[%clk 0:00:29]} 34. b5 {[%clk 0:01:53]}  axb5 {[%clk 0:00:29]} 35. axb5 {[%clk 0:01:52]}  Kb6 {[%clk 0:00:30]} 36. bxc6 {[%clk 0:01:51]}  dxc6 {[%clk 0:00:30]} 37. Be3+ {[%clk 0:01:51]}  Rxe3 {[%clk 0:00:16]} 38. fxe3 {[%clk 0:01:51]}  Rxe3 {[%clk 0:00:16]} 39. Kf2 {[%clk 0:01:52]}  Rb3 {[%clk 0:00:13]} 40. Re1 {[%clk 0:01:52]}  Rb2+ {[%clk 0:00:13]} 41. Re2 {[%clk 0:01:51]}  Rxe2+ {[%clk 0:00:13]} 42. Kxe2 {[%clk 0:01:51]}  Kc5 {[%clk 0:00:13]} 43. Bh5 {[%clk 0:01:45]}  h6 {[%clk 0:00:12]} 44. Be8 {[%clk 0:01:44]}  Kd6 {[%clk 0:00:12]} 45. Kd3 {[%clk 0:01:43]}  c5 {[%clk 0:00:12]} 46. Bg6 {[%clk 0:01:42]}  Ke5 {[%clk 0:00:13]} 47. Bh7 {[%clk 0:01:40]}  c4+ {[%clk 0:00:10]} 48. Kc3 {[%clk 0:01:39]}  f4 {[%clk 0:00:10]} 49. gxf4+ {[%clk 0:01:33]}  Kxf4 {[%clk 0:00:10]} 50. Bg8 {[%clk 0:01:33]}  Kg4 {[%clk 0:00:09]} 51. Bxd5 {[%clk 0:01:31]}  Kxh4 {[%clk 0:00:09]} 52. Kxc4 {[%clk 0:01:32]}  Kg3 {[%clk 0:00:09]} 53. Kd4 {[%clk 0:01:32]}  h5 {[%clk 0:00:09]} 54. Ke5 {[%clk 0:01:33]}  h4 {[%clk 0:00:09]} 55. Kf5 {[%clk 0:01:33]}  h3 {[%clk 0:00:09]} 56. Kg5 {[%clk 0:01:33]}  h2 {[%clk 0:00:09]} 57. Kh5 {[%clk 0:01:33]}  Kf2 {[%clk 0:00:09]} 58. Kh4 {[%clk 0:01:32]}  Kg1 {[%clk 0:00:09]} 59. Kg3 {[%clk 0:01:32]}  h1=N+ {[%clk 0:00:07]} 1/2-1/2


[Site "https://www.chess.com"]

[Event "Titled Tuesday Blitz December 20 Early 2022"]
[White "DefiantChair"]
[Black "Kukku, Ramesh"]
[BlackFideId "25695606"]
[WhiteElo "2631"]
[BlackElo "1575"]
[Result "1-0"]
[Round "07"]
[TimeControl "180+2"]
[Date "2022.12.20"]
[WhiteClock "0:01:03"]
[BlackClock "0:00:04"]

1. e4 {[%clk 0:03:00]}  Nc6 {[%clk 0:02:59]} 2. Nf3 {[%clk 0:03:00]}  f5 {[%clk 0:02:58]} 3. exf5 {[%clk 0:03:00]}  d5 {[%clk 0:02:58]} 4. Bb5 {[%clk 0:02:57]}  Bxf5 {[%clk 0:02:56]} 5. d4 {[%clk 0:02:58]}  Qd6 {[%clk 0:02:48]} 6. Nc3 {[%clk 0:02:54]}  O-O-O {[%clk 0:02:45]} 7. Ne5 {[%clk 0:02:54]}  Nxe5 {[%clk 0:02:42]} 8. dxe5 {[%clk 0:02:53]}  Qxe5+ {[%clk 0:02:41]} 9. Ne2 {[%clk 0:02:54]}  d4 {[%clk 0:02:29]} 10. Bd3 {[%clk 0:02:53]}  Bxd3 {[%clk 0:02:24]} 11. cxd3 {[%clk 0:02:54]}  Nf6 {[%clk 0:02:21]} 12. O-O {[%clk 0:02:53]}  Nd5 {[%clk 0:02:16]} 13. Ng3 {[%clk 0:02:44]}  h5 {[%clk 0:02:09]} 14. Re1 {[%clk 0:02:44]}  Qd6 {[%clk 0:02:02]} 15. Nxh5 {[%clk 0:02:38]}  e5 {[%clk 0:01:43]} 16. Ng3 {[%clk 0:02:37]}  Nf4 {[%clk 0:01:41]} 17. Bxf4 {[%clk 0:02:33]}  exf4 {[%clk 0:01:42]} 18. Qg4+ {[%clk 0:02:33]}  Kb8 {[%clk 0:01:40]} 19. Ne4 {[%clk 0:02:31]}  Qh6 {[%clk 0:01:38]} 20. h3 {[%clk 0:02:30]}  Bd6 {[%clk 0:01:37]} 21. Ng5 {[%clk 0:02:27]}  Rdf8 {[%clk 0:01:29]} 22. Re6 {[%clk 0:02:25]}  Qh4 {[%clk 0:01:14]} 23. Qxh4 {[%clk 0:02:10]}  Rxh4 {[%clk 0:01:15]} 24. Rae1 {[%clk 0:02:10]}  b5 {[%clk 0:01:06]} 25. Nf3 {[%clk 0:02:08]}  Rh5 {[%clk 0:01:02]} 26. Nxd4 {[%clk 0:02:08]}  Rd5 {[%clk 0:01:01]} 27. R6e4 {[%clk 0:02:02]}  a6 {[%clk 0:00:54]} 28. Rc1 {[%clk 0:01:53]}  c5 {[%clk 0:00:51]} 29. Ne6 {[%clk 0:01:50]}  Rf6 {[%clk 0:00:41]} 30. Nxg7 {[%clk 0:01:47]}  Rxd3 {[%clk 0:00:42]} 31. Ne8 {[%clk 0:01:43]}  Rf5 {[%clk 0:00:34]} 32. Nxd6 {[%clk 0:01:31]}  Rxd6 {[%clk 0:00:35]} 33. Rc2 {[%clk 0:01:28]}  Rd1+ {[%clk 0:00:32]} 34. Kh2 {[%clk 0:01:28]}  Kb7 {[%clk 0:00:32]} 35. h4 {[%clk 0:01:27]}  Kc6 {[%clk 0:00:29]} 36. Kh3 {[%clk 0:01:20]}  Kd5 {[%clk 0:00:28]} 37. f3 {[%clk 0:01:21]}  c4 {[%clk 0:00:18]} 38. Kg4 {[%clk 0:01:21]}  Rf8 {[%clk 0:00:19]} 39. Rxf4 {[%clk 0:01:10]}  Rxf4+ {[%clk 0:00:18]} 40. Kxf4 {[%clk 0:01:10]}  Kd4 {[%clk 0:00:19]} 41. h5 {[%clk 0:01:09]}  b4 {[%clk 0:00:18]} 42. h6 {[%clk 0:01:07]}  Kd3 {[%clk 0:00:18]} 43. Rf2 {[%clk 0:01:07]}  Rh1 {[%clk 0:00:15]} 44. Kg5 {[%clk 0:01:07]}  c3 {[%clk 0:00:15]} 45. bxc3 {[%clk 0:01:06]}  bxc3 {[%clk 0:00:16]} 46. Kg6 {[%clk 0:01:06]}  c2 {[%clk 0:00:13]} 47. Rxc2 {[%clk 0:01:05]}  Kxc2 {[%clk 0:00:14]} 48. h7 {[%clk 0:01:05]}  Kb2 {[%clk 0:00:13]} 49. Kg7 {[%clk 0:01:05]}  Kxa2 {[%clk 0:00:12]} 50. f4 {[%clk 0:01:06]}  a5 {[%clk 0:00:12]} 51. f5 {[%clk 0:01:06]}  a4 {[%clk 0:00:12]} 52. f6 {[%clk 0:01:07]}  a3 {[%clk 0:00:12]} 53. f7 {[%clk 0:01:07]}  Kb1 {[%clk 0:00:09]} 54. f8=Q {[%clk 0:01:08]}  a2 {[%clk 0:00:10]} 55. Qf5+ {[%clk 0:01:07]}  Kb2 {[%clk 0:00:10]} 56. Qe5+ {[%clk 0:01:07]}  Kb1 {[%clk 0:00:10]} 57. h8=Q {[%clk 0:01:07]}  Rc1 {[%clk 0:00:07]} 58. Qh7+ {[%clk 0:01:06]}  Rc2 {[%clk 0:00:07]} 59. Qh1+ {[%clk 0:01:06]}  Rc1 {[%clk 0:00:04]} 60. Qe4+ {[%clk 0:01:06]}  Kb2 {[%clk 0:00:04]} 61. Qd4+ {[%clk 0:01:04]}  Kb1 {[%clk 0:00:04]} 62. Qa1+ {[%clk 0:01:03]}  Kxa1 {[%clk 0:00:04]} 63. Qxc1# {[%clk 0:01:03]} 1-0


[Site "https://www.chess.com"]

[Event "Titled Tuesday Blitz December 20 Early 2022"]
[White "Delemarre, Jop"]
[Black "Cuajada_Zero"]
[WhiteFideId "1003704"]
[WhiteElo "2391"]
[BlackElo "2413"]
[Result "0-1"]
[Round "07"]
[TimeControl "180+2"]
[Date "2022.12.20"]
[WhiteClock "0:00:01"]
[BlackClock "0:00:03"]

1. e4 {[%clk 0:03:00]}  c6 {[%clk 0:02:58]} 2. d4 {[%clk 0:03:00]}  d5 {[%clk 0:02:59]} 3. e5 {[%clk 0:03:01]}  Bf5 {[%clk 0:02:58]} 4. Nf3 {[%clk 0:03:01]}  e6 {[%clk 0:02:59]} 5. Be2 {[%clk 0:03:02]}  Nd7 {[%clk 0:02:58]} 6. O-O {[%clk 0:03:02]}  Ne7 {[%clk 0:02:59]} 7. Nbd2 {[%clk 0:03:01]}  h6 {[%clk 0:02:59]} 8. Ne1 {[%clk 0:02:59]}  c5 {[%clk 0:02:58]} 9. c3 {[%clk 0:02:59]}  Nc6 {[%clk 0:02:58]} 10. Nb3 {[%clk 0:02:59]}  cxd4 {[%clk 0:02:58]} 11. cxd4 {[%clk 0:02:59]}  Be7 {[%clk 0:02:54]} 12. Bd3 {[%clk 0:02:58]}  Bxd3 {[%clk 0:02:54]} 13. Nxd3 {[%clk 0:02:58]}  Rc8 {[%clk 0:02:53]} 14. Qg4 {[%clk 0:02:56]}  g6 {[%clk 0:02:52]} 15. Be3 {[%clk 0:02:34]}  h5 {[%clk 0:02:51]} 16. Qh3 {[%clk 0:02:33]}  Kf8 {[%clk 0:02:44]} 17. Rac1 {[%clk 0:02:31]}  Kg7 {[%clk 0:02:43]} 18. Rc3 {[%clk 0:01:42]}  Nb4 {[%clk 0:02:35]} 19. Rxc8 {[%clk 0:01:32]}  Qxc8 {[%clk 0:02:34]} 20. Nxb4 {[%clk 0:01:30]}  Bxb4 {[%clk 0:02:35]} 21. Rc1 {[%clk 0:01:27]}  Qb8 {[%clk 0:02:30]} 22. Bg5 {[%clk 0:01:24]}  Rc8 {[%clk 0:02:28]} 23. Qe3 {[%clk 0:01:23]}  Rc7 {[%clk 0:02:16]} 24. a3 {[%clk 0:01:11]}  Bf8 {[%clk 0:02:10]} 25. Bh6+ {[%clk 0:01:00]}  Kg8 {[%clk 0:02:10]} 26. Bxf8 {[%clk 0:00:54]}  Kxf8 {[%clk 0:02:05]} 27. h4 {[%clk 0:00:44]}  Qc8 {[%clk 0:02:02]} 28. Kf1 {[%clk 0:00:36]}  Rc4 {[%clk 0:01:35]} 29. Ke1 {[%clk 0:00:25]}  Qc7 {[%clk 0:01:31]} 30. Kd2 {[%clk 0:00:23]}  Qb6 {[%clk 0:01:22]} 31. Rc3 {[%clk 0:00:19]}  Nb8 {[%clk 0:01:18]} 32. Kc2 {[%clk 0:00:12]}  Nc6 {[%clk 0:01:16]} 33. Rxc4 {[%clk 0:00:12]}  dxc4 {[%clk 0:01:16]} 34. Nc5 {[%clk 0:00:12]}  Qc7 {[%clk 0:00:31]} 35. Kc3 {[%clk 0:00:03]}  Ne7 {[%clk 0:00:27]} 36. Qf3 {[%clk 0:00:02]}  Nd5+ {[%clk 0:00:21]} 37. Kc2 {[%clk 0:00:01]}  Kg7 {[%clk 0:00:18]} 38. Ne4 {[%clk 0:00:01]}  Qb6 {[%clk 0:00:13]} 39. Nd6 {[%clk 0:00:02]}  Qc7 {[%clk 0:00:12]} 40. g3 {[%clk 0:00:01]}  a6 {[%clk 0:00:11]} 41. Qe2 {[%clk 0:00:02]}  b5 {[%clk 0:00:11]} 42. g4 {[%clk 0:00:02]}  b4 {[%clk 0:00:05]} 43. gxh5 {[%clk 0:00:01]}  b3+ {[%clk 0:00:05]} 44. Kb1 {[%clk 0:00:01]}  c3 {[%clk 0:00:05]} 45. Qf3 {[%clk 0:00:01]}  cxb2 {[%clk 0:00:03]} 0-1


[Site "https://www.chess.com"]

[Event "Titled Tuesday Blitz December 20 Early 2022"]
[White "Devallee, Jeremie"]
[Black "Alex_Sahakyan2006"]
[WhiteFideId "665240"]
[WhiteElo "2204"]
[BlackElo "2611"]
[Result "1-0"]
[Round "07"]
[TimeControl "180+2"]
[Date "2022.12.20"]
[WhiteClock "0:00:15"]
[BlackClock "0:01:14"]

1. e4 {[%clk 0:02:59]}  e6 {[%clk 0:02:59]} 2. d4 {[%clk 0:02:59]}  d5 {[%clk 0:03:00]} 3. exd5 {[%clk 0:02:59]}  exd5 {[%clk 0:03:01]} 4. Nf3 {[%clk 0:02:59]}  Bd6 {[%clk 0:03:01]} 5. Bd3 {[%clk 0:02:59]}  Ne7 {[%clk 0:03:01]} 6. O-O {[%clk 0:02:53]}  O-O {[%clk 0:03:00]} 7. Nc3 {[%clk 0:02:21]}  c6 {[%clk 0:02:55]} 8. Bg5 {[%clk 0:02:05]}  f6 {[%clk 0:02:55]} 9. Bh4 {[%clk 0:02:04]}  Nf5 {[%clk 0:02:52]} 10. Bg3 {[%clk 0:02:03]}  Nxg3 {[%clk 0:02:52]} 11. hxg3 {[%clk 0:02:04]}  Bg4 {[%clk 0:02:52]} 12. Be2 {[%clk 0:02:02]}  Qd7 {[%clk 0:02:48]} 13. Qd2 {[%clk 0:02:00]}  a5 {[%clk 0:02:43]} 14. a3 {[%clk 0:01:59]}  Na6 {[%clk 0:02:43]} 15. Na4 {[%clk 0:01:51]}  Rae8 {[%clk 0:02:41]} 16. c4 {[%clk 0:01:41]}  Kh8 {[%clk 0:02:31]} 17. c5 {[%clk 0:01:39]}  Bc7 {[%clk 0:02:29]} 18. Rfe1 {[%clk 0:01:26]}  Re4 {[%clk 0:02:27]} 19. Nc3 {[%clk 0:01:19]}  Re7 {[%clk 0:02:20]} 20. Bxa6 {[%clk 0:01:14]}  Rxe1+ {[%clk 0:02:18]} 21. Rxe1 {[%clk 0:01:14]}  bxa6 {[%clk 0:02:19]} 22. Qe2 {[%clk 0:01:12]}  h5 {[%clk 0:02:10]} 23. Qxa6 {[%clk 0:01:05]}  Bxf3 {[%clk 0:02:10]} 24. gxf3 {[%clk 0:01:05]}  h4 {[%clk 0:02:10]} 25. Kg2 {[%clk 0:00:50]}  h3+ {[%clk 0:02:04]} 26. Kh2 {[%clk 0:00:50]}  Rb8 {[%clk 0:01:57]} 27. Qe2 {[%clk 0:00:40]}  Qf5 {[%clk 0:01:56]} 28. f4 {[%clk 0:00:33]}  g5 {[%clk 0:01:27]} 29. Qh5+ {[%clk 0:00:29]}  Kg8 {[%clk 0:01:25]} 30. Re7 {[%clk 0:00:25]}  Rf8 {[%clk 0:01:23]} 31. Rxc7 {[%clk 0:00:20]}  Qc2 {[%clk 0:01:18]} 32. Qf3 {[%clk 0:00:18]}  f5 {[%clk 0:01:14]} 33. fxg5 {[%clk 0:00:17]}  f4 {[%clk 0:01:14]} 34. gxf4 {[%clk 0:00:16]}  Qd1 {[%clk 0:01:14]} 35. Qxd1 {[%clk 0:00:15]} 1-0


[Site "https://www.chess.com"]

[Event "Titled Tuesday Blitz December 20 Early 2022"]
[White "Djeno, Drago"]
[Black "The_filthy"]
[WhiteFideId "14400421"]
[WhiteElo "2223"]
[BlackElo "2377"]
[Result "0-1"]
[Round "07"]
[TimeControl "180+2"]
[Date "2022.12.20"]
[WhiteClock "0:00:56"]
[BlackClock "0:00:40"]

1. Nc3 {[%clk 0:03:00]}  e6 {[%clk 0:02:57]} 2. d4 {[%clk 0:02:57]}  d5 {[%clk 0:02:57]} 3. Bf4 {[%clk 0:02:56]}  Nf6 {[%clk 0:02:55]} 4. e3 {[%clk 0:02:56]}  Bb4 {[%clk 0:02:55]} 5. Bd3 {[%clk 0:02:56]}  c5 {[%clk 0:02:49]} 6. dxc5 {[%clk 0:02:55]}  O-O {[%clk 0:02:48]} 7. Qf3 {[%clk 0:02:52]}  Bxc5 {[%clk 0:02:45]} 8. O-O-O {[%clk 0:02:52]}  Nc6 {[%clk 0:02:44]} 9. e4 {[%clk 0:02:52]}  d4 {[%clk 0:02:30]} 10. e5 {[%clk 0:02:47]}  Nd7 {[%clk 0:02:15]} 11. Qh3 {[%clk 0:02:24]}  f5 {[%clk 0:02:07]} 12. exf6 {[%clk 0:02:21]}  Nxf6 {[%clk 0:02:04]} 13. Nf3 {[%clk 0:02:14]}  e5 {[%clk 0:01:59]} 14. Qh4 {[%clk 0:02:09]}  exf4 {[%clk 0:01:57]} 15. Ng5 {[%clk 0:02:07]}  h6 {[%clk 0:01:45]} 16. Bc4+ {[%clk 0:02:06]}  Kh8 {[%clk 0:01:46]} 17. Rhe1 {[%clk 0:01:57]}  Bf5 {[%clk 0:01:41]} 18. Nf7+ {[%clk 0:01:52]}  Rxf7 {[%clk 0:01:41]} 19. Bxf7 {[%clk 0:01:53]}  Qc7 {[%clk 0:01:29]} 20. Nd5 {[%clk 0:01:39]}  Qxf7 {[%clk 0:01:26]} 21. Nxf6 {[%clk 0:01:39]}  Qxf6 {[%clk 0:01:22]} 22. Qxf4 {[%clk 0:01:39]}  Bd6 {[%clk 0:01:08]} 23. Qf3 {[%clk 0:01:38]}  Rc8 {[%clk 0:01:06]} 24. Re2 {[%clk 0:01:33]}  Qg6 {[%clk 0:01:03]} 25. h3 {[%clk 0:01:26]}  Nb4 {[%clk 0:01:02]} 26. Qxb7 {[%clk 0:01:18]}  Nxa2+ {[%clk 0:00:46]} 27. Kb1 {[%clk 0:01:13]}  Rxc2 {[%clk 0:00:46]} 28. Kxa2 {[%clk 0:00:56]}  Rxe2 {[%clk 0:00:45]} 29. Rxd4 {[%clk 0:00:56]}  Be6+ {[%clk 0:00:40]} 0-1


[Site "https://www.chess.com"]

[Event "Titled Tuesday Blitz December 20 Early 2022"]
[White "Durin, Jean-Pierre"]
[Black "Hansch, Karsten"]
[WhiteFideId "26026600"]
[BlackFideId "24692239"]
[WhiteElo "1819"]
[BlackElo "2248"]
[Result "1-0"]
[Round "07"]
[TimeControl "180+2"]
[Date "2022.12.20"]
[WhiteClock "0:00:36"]
[BlackClock "0:00:16"]

1. d4 {[%clk 0:03:00]}  Nf6 {[%clk 0:02:58]} 2. Bg5 {[%clk 0:03:01]}  d5 {[%clk 0:02:58]} 3. Bxf6 {[%clk 0:03:01]}  exf6 {[%clk 0:02:59]} 4. e3 {[%clk 0:03:01]}  Bd6 {[%clk 0:02:59]} 5. a3 {[%clk 0:03:02]}  O-O {[%clk 0:02:58]} 6. c4 {[%clk 0:03:00]}  dxc4 {[%clk 0:02:58]} 7. Bxc4 {[%clk 0:03:01]}  c6 {[%clk 0:02:56]} 8. Nc3 {[%clk 0:03:01]}  f5 {[%clk 0:02:56]} 9. g3 {[%clk 0:03:00]}  g6 {[%clk 0:02:56]} 10. Bf1 {[%clk 0:02:54]}  Nd7 {[%clk 0:02:52]} 11. Bg2 {[%clk 0:02:54]}  Nf6 {[%clk 0:02:53]} 12. Nge2 {[%clk 0:02:55]}  Qe7 {[%clk 0:02:48]} 13. Qc2 {[%clk 0:02:55]}  Be6 {[%clk 0:02:47]} 14. O-O {[%clk 0:02:54]}  h5 {[%clk 0:02:46]} 15. h4 {[%clk 0:02:53]}  Rac8 {[%clk 0:02:41]} 16. b4 {[%clk 0:02:53]}  a6 {[%clk 0:02:41]} 17. Rfd1 {[%clk 0:02:52]}  Rfd8 {[%clk 0:02:35]} 18. Rac1 {[%clk 0:02:46]}  a5 {[%clk 0:02:33]} 19. bxa5 {[%clk 0:02:41]}  Bxa3 {[%clk 0:02:33]} 20. Ra1 {[%clk 0:02:37]}  Bb4 {[%clk 0:02:33]} 21. Na4 {[%clk 0:02:30]}  Bxa5 {[%clk 0:02:14]} 22. Nc5 {[%clk 0:02:28]}  Bb4 {[%clk 0:02:00]} 23. Rdb1 {[%clk 0:02:27]}  Bxc5 {[%clk 0:01:55]} 24. Qxc5 {[%clk 0:02:28]}  Qc7 {[%clk 0:01:29]} 25. Ra7 {[%clk 0:02:25]}  b6 {[%clk 0:01:12]} 26. Qxb6 {[%clk 0:02:18]}  Qxb6 {[%clk 0:01:06]} 27. Rxb6 {[%clk 0:02:19]}  c5 {[%clk 0:01:06]} 28. Bf3 {[%clk 0:02:07]}  c4 {[%clk 0:01:01]} 29. Nc3 {[%clk 0:02:00]}  Ne4 {[%clk 0:00:30]} 30. Nxe4 {[%clk 0:01:32]}  fxe4 {[%clk 0:00:31]} 31. Bxe4 {[%clk 0:01:32]}  c3 {[%clk 0:00:31]} 32. Bc2 {[%clk 0:01:22]}  Bf5 {[%clk 0:00:23]} 33. e4 {[%clk 0:01:19]}  Bxe4 {[%clk 0:00:21]} 34. Bxe4 {[%clk 0:01:20]}  c2 {[%clk 0:00:22]} 35. Bxc2 {[%clk 0:01:13]}  Rxc2 {[%clk 0:00:23]} 36. Rbb7 {[%clk 0:01:11]}  Rf8 {[%clk 0:00:20]} 37. Rd7 {[%clk 0:00:56]}  Rd2 {[%clk 0:00:20]} 38. Kg2 {[%clk 0:00:55]}  Kg7 {[%clk 0:00:20]} 39. Kf3 {[%clk 0:00:55]}  Kf6 {[%clk 0:00:20]} 40. Ra6+ {[%clk 0:00:53]}  Kg7 {[%clk 0:00:19]} 41. Raa7 {[%clk 0:00:41]}  Kf6 {[%clk 0:00:19]} 42. Ke3 {[%clk 0:00:40]}  Rd1 {[%clk 0:00:18]} 43. f3 {[%clk 0:00:36]}  Re8+ {[%clk 0:00:17]} 44. Kf4 {[%clk 0:00:37]}  Rxd4+ {[%clk 0:00:16]} 45. Rxd4 {[%clk 0:00:36]} 1-0


[Site "https://www.chess.com"]

[Event "Titled Tuesday Blitz December 20 Early 2022"]
[White "Etoilegeniale"]
[Black "Najdoski, Toni"]
[BlackFideId "15001334"]
[WhiteElo "2593"]
[BlackElo "2598"]
[Result "1-0"]
[Round "07"]
[TimeControl "180+2"]
[Date "2022.12.20"]
[WhiteClock "0:00:24"]
[BlackClock "0:00:08"]

1. d4 {[%clk 0:02:03]}  Nf6 {[%clk 0:02:55]} 2. Bg5 {[%clk 0:02:00]}  d5 {[%clk 0:02:50]} 3. Bxf6 {[%clk 0:01:59]}  exf6 {[%clk 0:02:51]} 4. e3 {[%clk 0:01:59]}  Bd6 {[%clk 0:02:51]} 5. Bd3 {[%clk 0:01:55]}  O-O {[%clk 0:02:50]} 6. Ne2 {[%clk 0:01:55]}  c6 {[%clk 0:02:50]} 7. c4 {[%clk 0:01:55]}  dxc4 {[%clk 0:02:48]} 8. Bxc4 {[%clk 0:01:54]}  Nd7 {[%clk 0:02:47]} 9. Nbc3 {[%clk 0:01:54]}  f5 {[%clk 0:02:47]} 10. O-O {[%clk 0:01:51]}  Nf6 {[%clk 0:02:48]} 11. h3 {[%clk 0:01:50]}  Qe7 {[%clk 0:02:47]} 12. Qc2 {[%clk 0:01:49]}  Ne4 {[%clk 0:02:45]} 13. Bd3 {[%clk 0:01:44]}  Re8 {[%clk 0:02:35]} 14. Rae1 {[%clk 0:01:42]}  b6 {[%clk 0:02:03]} 15. f3 {[%clk 0:01:33]}  Nxc3 {[%clk 0:02:02]} 16. Nxc3 {[%clk 0:01:33]}  g6 {[%clk 0:01:58]} 17. e4 {[%clk 0:01:33]}  Bg3 {[%clk 0:01:57]} 18. Rd1 {[%clk 0:01:27]}  f4 {[%clk 0:01:26]} 19. Ne2 {[%clk 0:01:16]}  Bd7 {[%clk 0:01:04]} 20. Qd2 {[%clk 0:01:07]}  Qh4 {[%clk 0:01:03]} 21. Nxg3 {[%clk 0:00:58]}  Qxg3 {[%clk 0:00:58]} 22. Qf2 {[%clk 0:00:56]}  Qg5 {[%clk 0:00:53]} 23. Kh2 {[%clk 0:00:55]}  Rad8 {[%clk 0:00:44]} 24. Bc4 {[%clk 0:00:55]}  Be6 {[%clk 0:00:44]} 25. Rc1 {[%clk 0:00:51]}  h5 {[%clk 0:00:32]} 26. Rc3 {[%clk 0:00:37]}  Qa5 {[%clk 0:00:23]} 27. Rfc1 {[%clk 0:00:35]}  Rc8 {[%clk 0:00:14]} 28. Qh4 {[%clk 0:00:33]}  Bxc4 {[%clk 0:00:11]} 29. Rxc4 {[%clk 0:00:33]}  Qxa2 {[%clk 0:00:12]} 30. R1c2 {[%clk 0:00:31]}  c5 {[%clk 0:00:10]} 31. d5 {[%clk 0:00:29]}  b5 {[%clk 0:00:10]} 32. Rxc5 {[%clk 0:00:26]}  Rxc5 {[%clk 0:00:11]} 33. Rxc5 {[%clk 0:00:26]}  Qxb2 {[%clk 0:00:11]} 34. Qxf4 {[%clk 0:00:26]}  a5 {[%clk 0:00:10]} 35. Rc7 {[%clk 0:00:26]}  Rf8 {[%clk 0:00:08]} 36. d6 {[%clk 0:00:24]}  a4 {[%clk 0:00:08]} 37. d7 {[%clk 0:00:24]}  a3 {[%clk 0:00:08]} 38. d8=Q {[%clk 0:00:24]} 1-0


[Site "https://www.chess.com"]

[Event "Titled Tuesday Blitz December 20 Early 2022"]
[White "Felix-Rose"]
[Black "ErikRonka"]
[WhiteElo "2299"]
[BlackElo "2520"]
[Result "0-1"]
[Round "07"]
[TimeControl "180+2"]
[Date "2022.12.20"]
[WhiteClock "0:01:58"]
[BlackClock "0:01:42"]

1. e4 {[%clk 0:03:00]}  c5 {[%clk 0:02:58]} 2. Nf3 {[%clk 0:03:00]}  e6 {[%clk 0:02:58]} 3. d4 {[%clk 0:03:00]}  cxd4 {[%clk 0:02:59]} 4. Nxd4 {[%clk 0:03:01]}  Nf6 {[%clk 0:02:59]} 5. Nc3 {[%clk 0:03:01]}  d6 {[%clk 0:02:59]} 6. Be3 {[%clk 0:03:00]}  a6 {[%clk 0:02:57]} 7. f3 {[%clk 0:03:00]}  b5 {[%clk 0:02:57]} 8. Qd2 {[%clk 0:03:00]}  Nbd7 {[%clk 0:02:57]} 9. g4 {[%clk 0:02:59]}  h6 {[%clk 0:02:58]} 10. h4 {[%clk 0:02:58]}  Nb6 {[%clk 0:02:43]} 11. O-O-O {[%clk 0:02:53]}  Nfd7 {[%clk 0:02:36]} 12. Kb1 {[%clk 0:02:44]}  b4 {[%clk 0:02:35]} 13. Nce2 {[%clk 0:02:43]}  Nc4 {[%clk 0:02:35]} 14. Qd3 {[%clk 0:02:43]}  Nxe3 {[%clk 0:02:35]} 15. Qxe3 {[%clk 0:02:44]}  Be7 {[%clk 0:02:29]} 16. Nc6 {[%clk 0:02:39]}  Qb6 {[%clk 0:02:30]} 17. Qxb6 {[%clk 0:02:38]}  Nxb6 {[%clk 0:02:31]} 18. Nxe7 {[%clk 0:02:38]}  Kxe7 {[%clk 0:02:32]} 19. Nd4 {[%clk 0:02:37]}  Bb7 {[%clk 0:02:30]} 20. b3 {[%clk 0:02:33]}  g6 {[%clk 0:02:25]} 21. Be2 {[%clk 0:02:33]}  e5 {[%clk 0:02:11]} 22. Kb2 {[%clk 0:02:20]}  exd4 {[%clk 0:02:09]} 23. Rxd4 {[%clk 0:02:21]}  a5 {[%clk 0:02:07]} 24. Rhd1 {[%clk 0:02:21]}  Rhd8 {[%clk 0:02:05]} 25. Bb5 {[%clk 0:02:20]}  Rac8 {[%clk 0:02:02]} 26. R1d2 {[%clk 0:02:16]}  d5 {[%clk 0:01:53]} 27. e5 {[%clk 0:02:09]}  Nd7 {[%clk 0:01:51]} 28. f4 {[%clk 0:02:06]}  Nc5 {[%clk 0:01:47]} 29. a3 {[%clk 0:02:04]}  Ne6 {[%clk 0:01:42]} 30. R4d3 {[%clk 0:01:58]} 0-1


[Site "https://www.chess.com"]